bitfinex-derivatives/quotes_SOLF0:USTF0_20260306
["timestamp","ask_amount","ask_price","bid_price","bid_amount"]
[1772825280690,1.17568016,85.439,85.402,10.538]
[1772825281789,1.17568016,85.439,85.394,10.539]
[1772825281993,3.58114049,85.43,85.394,10.539]
[1772825282187,1.18497274,85.429,85.375,3.66361749]
[1772825282389,1.18497274,85.429,85.376,3.66361749]
[1772825282583,1.18463655,85.419,85.37,3.58114049]
[1772825282784,1.18463655,85.409,85.362,3.66361749]
[1772825282991,1.18748653,85.419,85.375,3.66361749]
[1772825283686,1.18748653,85.419,85.375,14.20561749]
[1772825284084,1.18748653,85.419,85.375,3.66361749]
[1772825285189,3.58114049,85.42,85.375,3.66361749]
[1772825285587,1.20948848,85.419,85.375,3.66361749]
[1772825288198,10.537,85.417,85.375,3.66361749]
[1772825288394,11.75454004,85.417,85.375,3.66361749]
[1772825288897,10.537,85.411,85.375,3.66361749]
[1772825289896,1.21722637,85.416,85.375,3.66361749]
[1772825291296,10.538,85.408,85.375,3.66361749]
[1772825291795,1.21722637,85.416,85.375,3.66361749]
[1772825292095,1.21972078,85.409,85.37,11.71]
[1772825292697,10.538,85.409,85.371,3.66361749]
[1772825293099,10.537,85.417,85.371,3.66361749]
[1772825293400,10.537,85.417,85.381,3.66361749]
[1772825295697,1.21942127,85.424,85.381,3.66361749]
[1772825296001,4.87217414,85.43,85.381,3.66361749]
[1772825296200,1.29103365,85.429,85.381,3.66361749]
[1772825297704,10.537,85.418,85.381,3.66361749]
[1772825298307,3.58114049,85.43,85.391,3.66361749]
[1772825298308,10.535,85.43,85.391,3.66361749]
[1772825299209,10.534,85.438,85.394,3.66361749]
[1772825299406,4.93242706,85.44,85.394,3.66361749]
[1772825299803,10.535,85.431,85.394,3.66361749]
[1772825300708,10.534,85.438,85.399,3.66361749]
[1772825301503,10.533,85.445,85.401,3.66361749]
[1772825301805,3.58114049,85.45,85.401,3.66361749]
[1772825302013,1.44858109,85.449,85.401,3.66361749]
[1772825302410,10.535,85.432,85.39,7.24475798]
[1772825302606,1.44858109,85.431,85.39,7.24475798]
[1772825303011,1.44858109,85.431,85.39,3.66361749]
[1772825303308,1.35404043,85.444,85.401,3.66361749]
[1772825304907,10.534,85.442,85.403,14.20161749]
[1772825305314,3.58114049,85.45,85.407,3.66361749]
[1772825305508,10.532,85.451,85.407,3.66361749]
[1772825305708,3.58114049,85.45,85.407,3.66361749]
[1772825306110,10.534,85.439,85.407,3.66361749]
[1772825306311,1.20165851,85.449,85.4,3.58114049]
[1772825306512,1.20165851,85.449,85.394,3.66361749]
[1772825306816,1.20140373,85.439,85.394,3.66361749]
[1772825307915,1.20140373,85.439,85.394,14.20261749]
[1772825309719,1.20140373,85.439,85.395,3.66361749]
[1772825310321,1.20140373,85.439,85.4,3.66361749]
[1772825310914,1.20140373,85.439,85.402,14.20161749]
[1772825311113,1.20140373,85.439,85.403,3.66361749]
[1772825313119,1.20140373,85.439,85.391,3.89815217]
[1772825313320,4.01723964,85.438,85.391,3.89815217]
[1772825313623,2.92531387,85.437,85.391,3.89815217]
[1772825313825,1.09192984,85.438,85.391,3.89815217]
[1772825314023,2.92531387,85.437,85.391,3.89815217]
[1772825314219,1.09192984,85.438,85.391,3.89815217]
[1772825314523,1.09192984,85.438,85.391,14.43815217]
[1772825315425,1.09707295,85.436,85.391,14.43815217]
[1772825315724,1.09707295,85.434,85.391,14.43815217]
[1772825316024,2.92523581,85.433,85.391,14.43815217]
[1772825316225,2.92523811,85.432,85.391,14.43815217]
[1772825316427,2.92523811,85.431,85.391,14.43815217]
[1772825316624,1.09707295,85.434,85.391,14.43815217]
[1772825316824,2.92523811,85.433,85.392,3.89815217]
[1772825317127,2.92523811,85.432,85.392,3.89815217]
[1772825317421,2.92523811,85.431,85.392,3.89815217]
[1772825317626,2.92523811,85.43,85.392,3.89815217]
[1772825317927,1.09707295,85.434,85.392,3.89815217]
[1772825318127,2.92523671,85.433,85.392,3.89815217]
[1772825318326,2.92523671,85.432,85.392,3.89815217]
[1772825318524,2.92523671,85.431,85.392,3.89815217]
[1772825318725,4.02165378,85.43,85.392,3.89815217]
[1772825318923,2.92523671,85.429,85.392,3.89815217]
[1772825319225,2.92523671,85.428,85.392,3.89815217]
[1772825319425,2.92523671,85.427,85.392,3.89815217]
[1772825319622,2.92523671,85.426,85.392,3.89815217]
[1772825319823,1.09641707,85.43,85.392,3.89815217]
[1772825320021,2.92523786,85.429,85.392,3.89815217]
[1772825320221,2.92523786,85.428,85.392,3.89815217]
[1772825320422,2.92523786,85.427,85.392,3.89815217]
[1772825320625,2.92523786,85.426,85.392,3.89815217]
[1772825320825,1.09641707,85.43,85.392,3.89815217]
[1772825321026,2.92523761,85.429,85.392,3.89815217]
[1772825321227,2.92523761,85.428,85.392,3.89815217]
[1772825321425,2.92523761,85.427,85.392,3.89815217]
[1772825321722,1.09641707,85.43,85.392,3.89815217]
[1772825321928,2.92523711,85.429,85.393,14.43715217]
[1772825322226,1.09641707,85.43,85.393,14.43715217]
[1772825322227,2.92523711,85.428,85.393,14.43715217]
[1772825322426,2.92523711,85.427,85.393,14.43715217]
[1772825322624,1.09641707,85.43,85.398,10.539]
[1772825322826,2.92523625,85.429,85.398,14.43715217]
[1772825323022,2.92523625,85.428,85.398,14.43715217]
[1772825323326,2.92523625,85.427,85.398,14.43715217]
[1772825323622,1.09641707,85.43,85.398,14.43715217]
[1772825323829,2.92523609,85.429,85.398,14.43715217]
[1772825324024,2.92523609,85.428,85.398,14.43715217]
[1772825324328,1.09641707,85.43,85.398,14.43715217]
[1772825324523,2.92523584,85.429,85.401,3.89815217]
[1772825324717,2.92523584,85.428,85.401,3.89815217]
[1772825324919,3.58750167,85.44,85.401,3.89815217]
[1772825325119,12.64929695,85.439,85.401,3.89815217]
[1772825325323,12.64929695,85.438,85.401,3.89815217]
[1772825325627,12.64929695,85.437,85.401,3.89815217]
[1772825325929,2.92523444,85.436,85.402,10.538]
[1772825326227,2.92523444,85.435,85.403,3.89815217]
[1772825326428,2.92523444,85.434,85.403,3.89815217]
[1772825326628,2.92523444,85.433,85.403,3.89815217]
[1772825326829,2.92523444,85.432,85.403,3.89815217]
[1772825327025,2.92523444,85.431,85.403,3.89815217]
[1772825327228,3.58750167,85.44,85.403,3.89815217]
[1772825327430,2.92523355,85.439,85.403,3.89815217]
[1772825327724,2.92523355,85.438,85.403,3.89815217]
[1772825327931,2.92523355,85.437,85.405,10.538]
[1772825328125,2.92523355,85.436,85.405,10.538]
[1772825328322,2.92523355,85.435,85.405,10.538]
[1772825328632,2.92523355,85.434,85.403,3.89815217]
[1772825328834,1.09695772,85.432,85.395,10.22]
[1772825329034,2.92523355,85.431,85.395,10.22]
[1772825329232,2.92523355,85.43,85.395,10.22]
[1772825329432,2.92523355,85.429,85.395,10.22]
[1772825329727,2.92523355,85.428,85.395,10.22]
[1772825329931,2.92523355,85.427,85.395,10.22]
[1772825330131,2.92523355,85.426,85.395,10.22]
[1772825330434,2.92523355,85.425,85.395,10.22]
[1772825330632,14.12250167,85.43,85.395,10.22]
[1772825330931,2.92546665,85.429,85.395,10.22]
[1772825331131,1.05074139,85.419,85.395,10.22]
[1772825331333,2.92554327,85.418,85.395,10.22]
[1772825331534,1.05074139,85.419,85.395,10.22]
[1772825331730,2.92554864,85.418,85.395,10.22]
[1772825331934,3.58750167,85.42,85.395,10.22]
[1772825332132,2.92554689,85.419,85.395,10.22]
[1772825332437,2.92554689,85.418,85.395,10.22]
[1772825332634,10.536,85.419,85.395,10.22]
[1772825332835,2.92554673,85.418,85.395,10.22]
[1772825333036,3.58750167,85.42,85.395,10.22]
[1772825333235,2.92554648,85.419,85.395,10.22]
[1772825333430,2.92554648,85.418,85.395,10.22]
[1772825333635,3.58750167,85.42,85.395,10.22]
[1772825333838,13.46154648,85.419,85.395,10.22]
[1772825334031,2.92554648,85.418,85.395,10.22]
[1772825334231,10.536,85.419,85.395,10.22]
[1772825334428,2.92554804,85.418,85.395,10.22]
[1772825334638,1.16675841,85.429,85.395,10.22]
[1772825334837,3.58750167,85.42,85.395,10.22]
[1772825335036,2.92554804,85.419,85.395,10.22]
[1772825335227,2.92554804,85.418,85.395,10.22]
[1772825335434,3.58750167,85.4,85.336,3.89815217]
[1772825335738,1.16510391,85.409,85.351,3.86546891]
[1772825335739,2.92627265,85.399,85.351,3.86546891]
[1772825335934,4.74975272,85.42,85.368,3.86546891]
[1772825336238,1.16225105,85.418,85.368,3.86546891]
[1772825336437,3.58750167,85.41,85.368,3.86546891]
[1772825336639,2.92619279,85.409,85.368,3.86546891]
[1772825336838,2.92619279,85.408,85.368,3.86546891]
[1772825337040,2.92619279,85.407,85.368,3.86546891]
[1772825337340,2.92619279,85.406,85.368,3.86546891]
[1772825337638,2.92619279,85.405,85.369,3.86546891]
[1772825337840,2.92619279,85.404,85.369,3.86546891]
[1772825338038,3.58750167,85.41,85.369,3.86546891]
[1772825338338,2.92619095,85.409,85.369,3.86546891]
[1772825338536,2.92619095,85.408,85.369,3.86546891]
[1772825338734,2.92619095,85.407,85.369,3.86546891]
[1772825339039,2.92619095,85.406,85.369,3.86546891]
[1772825339239,2.92619095,85.405,85.369,3.86546891]
[1772825339442,3.58750167,85.41,85.372,3.86546891]
[1772825339640,2.92619108,85.409,85.372,3.86546891]
[1772825339840,2.92619108,85.408,85.372,3.86546891]
[1772825340037,2.92619108,85.407,85.372,3.86546891]
[1772825340239,2.92619108,85.406,85.372,3.86546891]
[1772825340441,2.92619108,85.405,85.372,3.86546891]
[1772825340641,3.58750167,85.41,85.372,3.86546891]
[1772825340942,2.92619182,85.409,85.372,3.86546891]
[1772825341143,1.44870764,85.428,85.372,3.86546891]
[1772825341441,2.92585019,85.427,85.372,3.86546891]
[1772825341641,12.65050722,85.426,85.372,3.86546891]
[1772825341842,12.65050722,85.425,85.372,3.86546891]
[1772825342041,2.92585019,85.424,85.372,3.86546891]
[1772825342244,2.92585019,85.423,85.384,3.66856904]
[1772825342539,3.58750167,85.43,85.384,3.66856904]
[1772825342744,2.92557988,85.429,85.384,3.66856904]
[1772825342945,2.92557988,85.428,85.384,3.66856904]
[1772825343145,2.92557988,85.427,85.384,3.66856904]
[1772825343444,2.92557988,85.426,85.384,3.66856904]
[1772825343646,2.92557988,85.425,85.384,3.66856904]
[1772825343838,2.92569588,85.424,85.384,3.66856904]
[1772825344036,5.01500166,85.43,85.384,3.66856904]
[1772825344240,2.92558099,85.429,85.384,3.66856904]
[1772825344448,2.92558099,85.428,85.384,3.66856904]
[1772825344653,2.92558099,85.427,85.384,3.66856904]
[1772825344848,2.92558099,85.426,85.384,3.66856904]
[1772825345050,1.42749999,85.43,85.384,3.66856904]
[1772825345343,2.92554326,85.429,85.384,3.66856904]
[1772825345547,2.92554326,85.428,85.384,3.66856904]
[1772825345844,2.92554326,85.427,85.387,3.66856904]
[1772825346048,14.12150167,85.44,85.387,3.66856904]
[1772825346251,12.64880104,85.439,85.387,3.66856904]
[1772825346449,14.06756859,85.438,85.387,3.66856904]
[1772825346648,12.64880104,85.437,85.387,3.66856904]
[1772825346850,12.64898124,85.436,85.387,3.66856904]
[1772825347048,2.92546938,85.435,85.391,3.66856904]
[1772825347251,12.64898124,85.434,85.391,3.66856904]
[1772825347553,2.92546938,85.433,85.391,3.66856904]
[1772825347751,2.92546938,85.432,85.391,3.66856904]
[1772825347953,2.92546938,85.431,85.391,3.66856904]
[1772825348150,2.92546938,85.43,85.391,3.66856904]
[1772825348447,2.92546938,85.429,85.391,3.66856904]
[1772825348648,2.92546938,85.428,85.394,3.66856904]
[1772825348849,2.92546938,85.427,85.394,3.66856904]
[1772825349050,1.41876755,85.438,85.394,3.66856904]
[1772825349245,14.06502467,85.437,85.394,3.66856904]
[1772825349447,10.533,85.448,85.382,10.24]
[1772825349448,2.92546724,85.436,85.4,3.58750167]
[1772825349652,11.94877706,85.448,85.401,3.66856904]
[1772825349845,14.06448974,85.447,85.401,3.66856904]
[1772825350049,12.64886245,85.446,85.401,3.66856904]
[1772825350251,12.64886245,85.445,85.401,3.66856904]
[1772825350451,12.64886245,85.444,85.401,3.66856904]
[1772825350748,1.41562729,85.447,85.382,10.24]
[1772825350749,2.92516281,85.443,85.403,3.66856904]
[1772825350954,2.92516281,85.442,85.403,3.66856904]
[1772825351154,2.92516281,85.441,85.403,3.66856904]
[1772825351349,2.92516281,85.44,85.404,10.538]
[1772825351551,1.41562729,85.447,85.405,3.66856904]
[1772825351752,12.64962792,85.446,85.405,3.66856904]
[1772825351955,2.92493153,85.445,85.405,3.66856904]
[1772825352258,12.64962875,85.444,85.405,3.66856904]
[1772825352459,12.64962875,85.443,85.405,3.66856904]
[1772825352655,2.92493153,85.442,85.405,3.66856904]
[1772825352958,2.92493153,85.441,85.405,3.66856904]
[1772825353152,2.92493153,85.44,85.405,3.66856904]
[1772825353360,2.92493153,85.439,85.405,3.66856904]
[1772825353565,2.92493153,85.438,85.405,3.66856904]
[1772825353857,2.92493153,85.437,85.405,3.66856904]
[1772825354057,1.41562729,85.447,85.405,3.66856904]
[1772825354254,12.6494817,85.446,85.405,3.66856904]
[1772825354457,12.6494817,85.445,85.405,3.66856904]
[1772825354758,12.6494817,85.444,85.407,3.66856904]
[1772825354957,2.92512488,85.443,85.407,3.66856904]
[1772825355161,2.92512488,85.442,85.407,3.66856904]
[1772825355361,2.92512488,85.441,85.407,3.66856904]
[1772825355563,1.42492987,85.439,85.396,3.66856904]
[1772825355762,1.42479013,85.429,85.384,3.66856904]
[1772825357567,10.534,85.44,85.391,3.66856904]
[1772825357763,12.65083027,85.439,85.391,3.66856904]
[1772825357964,10.534,85.44,85.391,3.66856904]
[1772825357965,2.92523776,85.438,85.391,3.66856904]
[1772825358165,2.92523776,85.437,85.391,3.66856904]
[1772825358366,4.35458984,85.436,85.391,3.66856904]
[1772825358567,2.92523776,85.435,85.391,3.66856904]
[1772825358770,2.92523776,85.434,85.395,3.66856904]
[1772825358969,2.92523776,85.433,85.395,3.66856904]
[1772825359268,2.92523776,85.432,85.395,3.66856904]
[1772825359469,1.42935208,85.436,85.395,3.66856904]
[1772825359470,2.92523776,85.431,85.395,3.66856904]
[1772825359671,1.42935208,85.436,85.395,3.66856904]
[1772825359868,2.92523616,85.435,85.395,3.66856904]
[1772825360068,2.92523616,85.434,85.395,3.66856904]
[1772825360266,2.92523616,85.433,85.402,14.20656904]
[1772825360574,2.92516378,85.432,85.403,3.66856904]
[1772825360767,1.43041334,85.449,85.403,3.66856904]
[1772825360969,12.65062504,85.448,85.403,3.66856904]
[1772825361168,12.65062504,85.447,85.403,3.66856904]
[1772825361369,12.65062504,85.446,85.403,3.66856904]
[1772825361571,12.65062504,85.445,85.403,3.66856904]
[1772825361768,12.65062504,85.444,85.405,3.66856904]
[1772825361967,12.65062504,85.443,85.405,3.66856904]
[1772825362271,12.65026617,85.442,85.405,3.66856904]
[1772825362473,12.65026617,85.441,85.405,3.66856904]
[1772825362771,2.92516362,85.44,85.405,3.66856904]
[1772825363074,2.92516362,85.439,85.405,3.66856904]
[1772825363275,2.92516362,85.438,85.405,3.66856904]
[1772825363476,2.92516362,85.437,85.405,3.66856904]
[1772825363775,2.92516362,85.436,85.405,3.66856904]
[1772825363974,1.43041334,85.449,85.405,3.66856904]
[1772825364275,12.65021889,85.448,85.405,3.66856904]
[1772825364472,12.65021889,85.447,85.405,3.66856904]
[1772825364673,12.65021889,85.446,85.405,3.66856904]
[1772825364870,2.92512544,85.445,85.409,3.66856904]
[1772825365074,2.92512544,85.444,85.409,3.66856904]
[1772825365270,1.43041334,85.449,85.409,3.66856904]
[1772825365271,2.92512544,85.443,85.409,3.66856904]
[1772825365471,2.92512544,85.442,85.409,3.66856904]
[1772825365670,2.92512544,85.441,85.409,3.66856904]
[1772825365876,1.43041334,85.449,85.409,3.66856904]
[1772825366072,1.4303835,85.447,85.401,10.539]
[1772825366275,1.4303835,85.445,85.401,14.20756904]
[1772825366473,1.4303835,85.443,85.402,3.66856904]
[1772825366673,2.92492887,85.442,85.411,10.537]
[1772825366873,1.4303835,85.443,85.411,10.537]
[1772825367177,2.92489357,85.442,85.411,10.537]
[1772825367375,1.4303835,85.443,85.411,10.537]
[1772825367572,2.92489357,85.442,85.411,10.537]
[1772825367876,3.58750167,85.45,85.411,14.20556904]
[1772825368075,2.92489341,85.449,85.411,14.20556904]
[1772825368372,2.92489341,85.448,85.417,10.537]
[1772825368576,2.92489341,85.447,85.417,10.537]
[1772825368777,3.58750167,85.45,85.411,3.66856904]
[1772825368778,2.92489341,85.446,85.411,3.66856904]
[1772825368977,2.92489341,85.445,85.411,3.66856904]
[1772825369276,2.92489341,85.444,85.411,3.66856904]
[1772825369476,2.92489341,85.443,85.411,3.66856904]
[1772825369780,5.00607247,85.45,85.411,14.20556904]
[1772825369978,2.92489288,85.449,85.412,3.66856904]
[1772825370177,2.92489288,85.448,85.412,3.66856904]
[1772825370379,2.92489288,85.447,85.412,3.66856904]
[1772825370676,2.92489288,85.446,85.412,3.66856904]
[1772825370879,2.92489288,85.445,85.412,3.66856904]
[1772825371079,2.92489288,85.444,85.412,3.66856904]
[1772825371277,2.92489288,85.443,85.412,3.66856904]
[1772825371479,5.00607247,85.45,85.412,3.66856904]
[1772825371673,2.92489288,85.449,85.412,3.66856904]
[1772825371878,2.92489288,85.448,85.412,3.66856904]
[1772825372080,2.92489288,85.447,85.412,3.66856904]
[1772825372376,2.92489288,85.446,85.412,3.66856904]
[1772825372576,2.92489288,85.445,85.412,3.66856904]
[1772825372779,2.92489288,85.444,85.412,3.66856904]
[1772825373081,2.92489288,85.443,85.412,3.66856904]
[1772825373273,5.00607247,85.45,85.412,3.66856904]
[1772825373482,2.92489263,85.449,85.412,3.66856904]
[1772825373679,2.92489263,85.448,85.412,3.66856904]
[1772825373881,2.92489263,85.447,85.412,3.66856904]
[1772825374079,2.92489263,85.446,85.412,3.66856904]
[1772825374281,2.92489263,85.445,85.414,10.537]
[1772825374482,1.4185708,85.45,85.414,10.537]
[1772825374785,2.92485669,85.449,85.414,10.537]
[1772825374981,2.92485669,85.448,85.414,10.537]
[1772825375280,2.92485669,85.447,85.414,10.537]
[1772825375482,1.4185708,85.45,85.414,14.49915301]
[1772825375483,2.92485669,85.446,85.414,14.49915301]
[1772825375679,2.92485669,85.446,85.382,10.24]
[1772825375680,1.40194633,85.461,85.42,3.58750167]
[1772825375880,12.64134733,85.46,85.421,3.96215301]
[1772825376181,12.64134733,85.459,85.421,3.96215301]
[1772825376479,12.64134733,85.458,85.421,3.96215301]
[1772825376681,12.64134733,85.457,85.421,3.96215301]
[1772825376874,2.92478336,85.456,85.423,10.536]
[1772825377076,2.92478336,85.455,85.423,14.49815301]
[1772825377282,2.92478336,85.454,85.423,14.49815301]
[1772825377482,2.92478336,85.453,85.423,14.49815301]
[1772825377682,2.92478336,85.452,85.423,14.49815301]
[1772825377882,1.40194633,85.461,85.423,14.49815301]
[1772825377883,2.92478336,85.451,85.423,14.49815301]
[1772825378084,2.92478336,85.45,85.424,3.96215301]
[1772825378384,1.40194633,85.461,85.424,3.96215301]
[1772825378585,12.63935986,85.46,85.424,3.96215301]
[1772825378787,12.63935986,85.459,85.424,3.96215301]
[1772825378985,12.63935986,85.458,85.424,3.96215301]
[1772825379182,2.92477952,85.457,85.424,3.96215301]
[1772825379485,2.92477952,85.456,85.424,3.96215301]
[1772825379783,1.40194633,85.461,85.424,3.96215301]
[1772825379784,2.92477952,85.455,85.424,3.96215301]
[1772825379986,2.92477952,85.454,85.424,3.96215301]
[1772825380184,2.92477952,85.453,85.424,3.96215301]
[1772825380385,2.92477952,85.452,85.424,3.96215301]
[1772825380687,2.92477952,85.451,85.424,3.96215301]
[1772825380882,2.92477952,85.45,85.424,3.96215301]
[1772825381085,1.40194633,85.461,85.424,3.96215301]
[1772825381387,16.55749146,85.488,85.401,3.96215301]
[1772825381388,1.38080611,85.449,85.401,3.96215301]
[1772825381585,2.92477928,85.448,85.401,3.96215301]
[1772825381783,1.38070387,85.446,85.401,3.96215301]
[1772825381984,2.92496384,85.445,85.401,3.96215301]
[1772825382180,1.38070387,85.446,85.401,3.96215301]
[1772825382379,2.92485645,85.445,85.401,3.96215301]
[1772825382577,1.38059439,85.457,85.41,3.58495848]
[1772825382783,12.64356385,85.456,85.411,3.96215301]
[1772825383082,12.64356385,85.455,85.411,3.96215301]
[1772825383279,12.64356385,85.454,85.411,3.96215301]
[1772825383486,12.64356385,85.453,85.411,3.96215301]
[1772825383685,12.64356385,85.452,85.411,3.96215301]
[1772825383885,12.64356385,85.451,85.412,3.96215301]
[1772825384081,2.92482115,85.45,85.412,3.96215301]
[1772825384292,12.65074107,85.449,85.412,3.96215301]
[1772825384486,2.92482115,85.448,85.412,3.96215301]
[1772825384694,2.92482115,85.447,85.416,3.96215301]
[1772825384991,2.92482115,85.446,85.416,3.96215301]
[1772825385191,10.531,85.465,85.416,3.96215301]
[1772825385391,12.65030564,85.464,85.416,3.96215301]
[1772825385588,12.65030564,85.463,85.416,3.96215301]
[1772825385787,1.41416552,85.459,85.416,3.96215301]
[1772825385992,12.65030564,85.458,85.416,3.96215301]
[1772825386189,12.65030564,85.457,85.416,3.96215301]
[1772825386495,12.65030564,85.456,85.42,3.58495848]
[1772825386693,1.41415707,85.469,85.421,3.96215301]
[1772825386891,1.41406056,85.467,85.421,3.96215301]
[1772825387091,1.41873462,85.465,85.421,3.96215301]
[1772825387293,2.92424587,85.464,85.421,3.96215301]
[1772825387494,3.58495848,85.47,85.42,3.58495848]
[1772825387495,1.41873462,85.462,85.424,3.96215301]
[1772825387694,5.00359771,85.46,85.424,3.96215301]
[1772825387992,12.65497338,85.459,85.424,3.96215301]
[1772825388194,2.92424587,85.458,85.424,3.96215301]
[1772825388392,2.92424587,85.457,85.424,3.96215301]
[1772825388590,2.92424587,85.456,85.424,3.96215301]
[1772825388789,2.92424587,85.455,85.424,3.96215301]
[1772825388989,2.92424587,85.454,85.424,3.96215301]
[1772825389191,1.35370235,85.473,85.424,3.96215301]
[1772825389495,12.65457774,85.472,85.431,3.96215301]
[1772825389693,12.65457774,85.471,85.431,3.96215301]
[1772825389995,12.65457774,85.47,85.432,8.15]
[1772825390289,12.65457774,85.469,85.432,8.15]
[1772825390495,12.65457774,85.468,85.432,8.15]
[1772825390697,12.65457774,85.467,85.432,8.15]
[1772825390995,2.92440079,85.466,85.432,8.15]
[1772825391193,2.92440079,85.465,85.432,8.15]
[1772825391389,2.92440079,85.464,85.432,8.15]
[1772825391591,13.9922621,85.463,85.432,8.15]
[1772825391891,1.34017068,85.461,85.432,8.15]
[1772825392092,3.58495848,85.47,85.432,8.15]
[1772825392093,1.34016363,85.459,85.432,8.15]
[1772825392293,12.65200033,85.458,85.432,8.15]
[1772825392495,12.65200033,85.457,85.432,8.15]
[1772825392793,2.92440079,85.456,85.432,8.15]
[1772825393096,2.92440079,85.455,85.432,8.15]
[1772825393297,2.92440079,85.454,85.432,8.15]
[1772825393495,2.92440079,85.453,85.432,8.15]
[1772825393694,2.92440079,85.452,85.432,8.15]
[1772825393898,1.34016363,85.459,85.432,8.15]
[1772825394093,2.92451027,85.458,85.432,8.15]
[1772825394396,2.92451027,85.457,85.432,8.15]
[1772825394598,2.92451027,85.456,85.432,8.15]
[1772825394898,2.92451027,85.455,85.432,8.15]
[1772825395199,2.92451027,85.454,85.432,8.15]
[1772825395398,2.92451027,85.453,85.432,8.15]
[1772825395593,2.92451027,85.452,85.432,8.15]
[1772825395794,1.34016363,85.459,85.432,8.15]
[1772825396098,2.92450982,85.458,85.432,8.15]
[1772825396298,2.92450982,85.457,85.432,8.15]
[1772825396599,2.92450982,85.456,85.432,8.15]
[1772825396799,2.92450982,85.455,85.433,3.71891043]
[1772825396996,2.92443962,85.454,85.433,3.71891043]
[1772825397196,3.58495848,85.47,85.433,3.71891043]
[1772825397397,1.34093365,85.468,85.432,8.15]
[1772825397600,1.34093365,85.466,85.432,8.15]
[1772825397901,3.58495848,85.46,85.432,8.15]
[1772825398098,9.72908529,85.459,85.432,8.15]
[1772825398299,9.72908529,85.458,85.432,8.15]
[1772825398501,1.3408496,85.464,85.432,8.15]
[1772825398699,0.00063664,85.486,85.451,3.71891043]
[1772825399004,14.52058124,85.58,85.481,3.71891043]
[1772825399296,11.5360355,85.61,85.462,163.823]
[1772825399297,11.5360355,85.61,85.531,3.71891043]
[1772825399495,3.58495848,85.58,85.531,3.71891043]
[1772825399795,3.80677695,85.579,85.531,3.71891043]
[1772825400000,3.58495848,85.58,85.531,3.71891043]
[1772825400196,3.80677695,85.569,85.512,3.71891043]
[1772825400394,3.58495848,85.56,85.512,3.71891043]
[1772825400592,7.39173543,85.55,85.491,3.71891043]
[1772825400796,3.58495848,85.54,85.491,3.71891043]
[1772825400992,3.58495848,85.53,85.491,3.71891043]
[1772825401205,3.58495848,85.54,85.491,3.71891043]
[1772825401704,3.80677695,85.549,85.495,3.63525694]
[1772825402001,3.58495848,85.54,85.495,3.63525694]
[1772825404404,3.80677695,85.549,85.501,3.63525694]
[1772825405999,3.88225225,85.559,85.511,3.63525694]
[1772825406202,3.58495848,85.55,85.511,3.63525694]
[1772825407602,3.88225225,85.559,85.511,3.63525694]
[1772825409398,3.58495848,85.57,85.521,3.63525694]
[1772825409601,7.46721073,85.57,85.521,3.63525694]
[1772825410100,3.58495848,85.56,85.521,3.63525694]
[1772825411308,3.58495848,85.55,85.506,3.63525694]
[1772825411498,3.88225225,85.549,85.506,3.63525694]
[1772825413311,3.58495848,85.54,85.506,3.63525694]
[1772825413810,3.58495848,85.53,85.489,3.63525694]
[1772825414009,3.88225225,85.539,85.491,3.63525694]
[1772825414906,3.58495848,85.52,85.477,3.63525694]
[1772825415600,3.58495848,85.52,85.479,10.529]
[1772825415799,3.58495848,85.52,85.48,3.63525694]
[1772825416009,3.88225225,85.529,85.48,3.63525694]
[1772825416309,3.88225225,85.529,85.481,3.63525694]
[1772825416512,3.88225225,85.529,85.482,3.63525694]
[1772825417011,3.58495848,85.54,85.482,3.63525694]
[1772825417403,3.58495848,85.54,85.492,10.527]
[1772825418211,3.88225225,85.539,85.493,3.63525694]
[1772825418613,3.58495848,85.54,85.435,21.069]
[1772825418614,3.88225225,85.529,85.479,14.16425694]
[1772825419113,3.58495848,85.54,85.491,3.63525694]
[1772825419317,7.46721073,85.54,85.491,3.63525694]
[1772825420409,3.88225225,85.553,85.501,3.63525694]
[1772825420609,3.88225225,85.553,85.51,3.58495848]
[1772825421210,3.88225225,85.553,85.501,3.63525694]
[1772825421410,3.88225225,85.553,85.505,3.63525694]
[1772825422517,14.37157404,85.626,85.455,21.064]
[1772825422518,3.88225225,85.539,85.488,3.63525694]
[1772825422716,3.88225225,85.529,85.488,3.63525694]
[1772825422919,3.88225225,85.529,85.471,3.63525694]
[1772825423319,163.558,85.601,85.471,3.63525694]
[1772825423320,3.88225225,85.519,85.471,3.63525694]
[1772825424427,3.88225225,85.519,85.47,3.58495848]
[1772825424428,3.88225225,85.519,85.473,3.63525694]
[1772825424822,3.58495848,85.53,85.483,14.16325694]
[1772825425016,3.58495848,85.53,85.484,3.63525694]
[1772825425221,3.88225225,85.533,85.484,3.63525694]
[1772825425420,3.88225225,85.533,85.486,10.528]
[1772825426426,10.521,85.545,85.492,3.63525694]
[1772825426628,3.88225225,85.547,85.501,3.63525694]